bitfinex/quotes_ETHUSD_20241216
["timestamp","ask_amount","ask_price","bid_price","bid_amount"]
[1734319452643,4.62025779,3948.5,3947.4,0.8095]
[1734319452845,4.86287977,3948.5,3947.4,0.8095]
[1734319453053,2.5327,3948.4,3947.4,0.8095]
[1734319453439,2.33027977,3948.5,3947.4,0.8095]
[1734319453646,2.08765779,3948.5,3947.5,0.8095]
[1734319454146,2.08765779,3948.9,3947.6,0.8095]
[1734319454442,2.53222,3949.1,3947.9,2.53298]
[1734319454745,2.53222,3949.1,3948.0,0.8095]
[1734319455357,2.08765779,3949.3,3948.0,0.8095]
[1734319455679,5.18947257,3949.3,3947.7,0.7641]
[1734319455902,5.18947257,3949.3,3948.2,0.7641]
[1734319456266,1.037111,3950.1,3948.2,0.7641]
[1734319456267,3.12476879,3950.2,3948.3,0.7641]
[1734319456469,2.08765779,3950.2,3948.8,0.7641]
[1734319456694,2.08765779,3950.2,3949.1,0.7641]
[1734319456978,3.28636,3950.6,3948.3,4.75369218]
[1734319456979,5.37401779,3950.6,3949.3,0.7641]
[1734319457287,5.70265379,3950.6,3949.3,0.7641]
[1734319457579,3.17139379,3950.6,3949.3,0.7641]
[1734319457785,2.53133,3950.5,3949.3,0.7641]
[1734319457970,0.57027238,3950.4,3949.3,0.7641]
[1734319458367,2.53145,3950.3,3949.3,0.7641]
[1734319458748,2.53158,3950.1,3949.3,0.7641]
[1734319458970,2.08765779,3950.2,3949.3,0.7641]
[1734319459370,2.53166,3950.0,3949.3,0.7641]
[1734319459571,0.46193178,3949.9,3949.3,0.7641]
[1734319460307,1.22293178,3949.9,3949.0,0.7565]
[1734319460605,0.761,3949.9,3949.0,0.7565]
[1734319460991,2.53196,3949.5,3949.0,0.7565]
[1734319461328,2.53218,3949.2,3949.0,0.7565]
[1734319461629,2.53218,3949.2,3948.7,0.7822]
[1734319461630,0.253218,3949.1,3948.7,0.7822]
[1734319463440,0.253218,3949.1,3948.4,0.7968]
[1734319463618,2.53245,3948.8,3947.6,1.14317668]
[1734319463928,2.53248,3948.7,3947.7,0.34637668]
[1734319464402,2.53248,3948.7,3947.7,0.70596218]
[1734319464606,0.46201378,3948.7,3947.7,0.70596218]
[1734319464771,2.53246,3948.8,3947.7,0.70596218]
[1734319464978,2.08765779,3949.0,3947.7,0.70596218]
[1734319465896,2.53246,3948.8,3947.7,0.70596218]
[1734319466201,2.5328,3948.2,3947.7,0.70596218]
[1734319466389,2.5328,3948.2,3947.7,0.3595855]
[1734319467782,2.53266,3948.5,3947.7,0.3595855]
[1734319468092,2.53267,3948.4,3947.7,0.3595855]
[1734319468294,0.253267,3948.4,3947.7,0.3595855]
[1734319468506,2.53277,3948.3,3947.7,0.3595855]
[1734319469502,2.53281,3948.2,3947.7,0.3595855]
[1734319470033,2.53281,3948.2,3947.6,0.7968]
[1734319471197,2.53266,3948.5,3947.6,1.14317668]
[1734319471436,2.53249,3948.7,3947.7,0.34637668]
[1734319471998,0.70632787,3948.8,3947.7,0.34637668]
[1734319472318,2.53274,3948.3,3947.7,0.34637668]
[1734319472515,2.08765779,3948.6,3947.6,0.7968]
[1734319472833,2.53267,3948.4,3947.6,0.7968]
[1734319473033,2.53291,3948.1,3947.6,0.7968]
[1734319473408,2.53272,3948.4,3947.6,0.7968]
[1734319473612,3.00914906,3948.4,3947.6,0.7968]
[1734319474209,0.47642906,3948.4,3947.6,0.7968]
[1734319474397,2.08765779,3948.6,3947.2,0.7572]
[1734319474601,2.53296,3948.0,3947.2,1.10357668]
[1734319475034,2.08765779,3948.6,3947.2,1.10357668]
[1734319475035,2.53277,3948.3,3947.2,1.10357668]
[1734319475451,2.53301,3947.9,3947.2,1.10357668]
[1734319476007,2.53306,3947.8,3947.2,1.10357668]
[1734319476207,2.53306,3947.8,3947.3,0.34637668]
[1734319476412,2.53306,3947.8,3947.3,0.70596218]
[1734319476834,0.253306,3947.8,3947.2,0.7572]
[1734319477113,2.53321,3947.6,3947.2,0.7572]
[1734319477338,2.53305,3947.9,3947.2,0.7572]
[1734319477723,2.53306,3947.8,3947.2,0.7572]
[1734319478139,2.53313,3947.7,3947.2,0.7572]
[1734319478442,0.53707578,3947.9,3947.2,0.7572]
[1734319478635,2.53317,3947.7,3947.2,0.7572]
[1734319478842,2.53294,3948.0,3947.2,1.46316218]
[1734319479036,2.08765779,3948.6,3947.3,0.34637668]
[1734319479244,2.53268,3948.4,3947.4,0.8049]
[1734319479888,2.92825688,3948.5,3947.5,1.1488855]
[1734319480170,2.53265,3948.5,3947.5,1.1488855]
[1734319480540,2.87755779,3949.0,3947.5,1.1488855]
[1734319480743,2.5325,3948.7,3947.5,0.3595855]
[1734319480926,2.53235,3948.9,3947.6,1.15417668]
[1734319481265,2.08765779,3949.0,3947.7,0.767]
[1734319481266,2.53242,3948.8,3947.7,0.767]
[1734319481757,2.08765779,3949.0,3947.7,0.767]
[1734319481758,2.08765779,3949.0,3947.7,1.11337668]
[1734319481963,2.53249,3948.7,3947.7,1.11337668]
[1734319482962,2.74111578,3948.9,3947.7,1.11337668]
[1734319483322,2.53242,3948.8,3947.7,1.11337668]
[1734319483534,0.20876578,3948.9,3947.7,1.11337668]
[1734319483954,2.08765779,3949.0,3947.8,1.11107668]
[1734319484261,2.08765779,3949.0,3947.9,0.8085]
[1734319486365,2.53243,3948.8,3947.9,0.8085]
[1734319490372,2.08765779,3949.0,3947.9,0.8085]
[1734319490866,2.5326,3948.6,3947.9,0.8085]
[1734319491676,0.25326,3948.5,3947.9,0.8085]
[1734319492062,2.53267,3948.4,3947.9,0.8085]
[1734319492239,2.53277,3948.3,3947.9,0.8085]
[1734319494147,2.53281,3948.2,3947.9,0.8085]
[1734319499503,0.25326,3948.5,3947.9,0.8085]
[1734319499782,2.53268,3948.4,3947.9,0.8085]
[1734319500185,2.53254,3948.6,3947.9,0.8085]
[1734319500392,2.53254,3948.6,3947.9,1.15487668]
[1734319500709,2.53221,3949.2,3948.1,0.7701]
[1734319500905,2.53221,3949.2,3948.2,0.70596218]
[1734319501215,2.53221,3949.2,3948.3,0.7701]
[1734319502048,2.53221,3949.2,3948.3,1.1296855]
[1734319502683,2.53223,3949.1,3948.3,1.47606218]
[1734319502903,2.53223,3949.1,3947.7,1.04767593]
[1734319502904,2.53223,3949.1,3948.4,1.46956218]
[1734319503078,2.53209,3949.4,3948.4,1.46956218]
[1734319503305,2.74085578,3949.4,3948.4,1.46956218]
[1734319503665,2.53174,3949.9,3948.5,0.7636]
[1734319503666,2.53189,3949.7,3948.5,0.7636]
[1734319503912,4.61937779,3949.9,3948.7,0.8177]
[1734319504104,4.61937779,3949.9,3948.8,0.70596218]
[1734319504402,2.53162,3950.1,3948.9,0.8177]
[1734319504575,0.64691799,3950.2,3949.0,1.16407668]
[1734319504785,2.08765779,3950.3,3949.0,1.16407668]
[1734319504786,2.08765779,3950.3,3949.1,0.8177]
[1734319504988,4.61912779,3950.3,3949.2,1.16407668]
[1734319505189,2.53152,3950.2,3949.2,1.16407668]
[1734319505389,2.53171,3949.9,3949.2,1.16407668]
[1734319505600,2.08765779,3950.3,3949.2,1.16407668]
[1734319505760,2.53158,3950.1,3949.2,1.16407668]
[1734319506160,2.53158,3950.1,3949.3,0.7599]
[1734319506366,4.93158467,3950.3,3949.3,0.7599]
[1734319506772,4.61910779,3950.3,3949.3,0.7599]
[1734319506977,4.61910779,3950.3,3949.4,0.7599]
[1734319507373,2.53131,3950.6,3949.5,0.7599]
[1734319507701,2.08765779,3950.7,3949.6,0.7599]
[1734319508004,2.08765779,3950.7,3949.5,0.34637668]
[1734319508005,0.8275,3951.1,3949.5,0.34637668]
[1734319508205,1.16467748,3951.4,3949.8,0.7599]
[1734319508371,1.16467748,3951.4,3950.0,0.7599]
[1734319508372,0.12756648,3951.4,3950.0,0.7599]
[1734319508572,2.53024,3952.2,3950.9,0.7599]
[1734319508873,2.08765779,3952.6,3951.2,0.7599]
[1734319508874,0.3567351,3952.1,3951.2,0.7599]
[1734319509183,4.69218865,3952.9,3951.6,0.7599]
[1734319509510,2.16239865,3952.9,3951.8,3.35448]
[1734319509665,2.08765779,3952.3,3951.9,0.824]
[1734319509989,2.08765779,3952.2,3951.1,0.824]
[1734319510389,2.53038,3952.0,3951.1,0.824]
[1734319510609,2.53051,3951.8,3951.1,0.824]
[1734319510766,2.783621,3951.7,3951.1,0.824]
[1734319510964,4.61789779,3952.2,3951.1,0.824]
[1734319510965,2.5303,3952.1,3951.1,0.824]
[1734319511169,2.53057,3951.7,3951.1,0.824]
[1734319511911,2.53079,3951.4,3951.1,0.824]
[1734319512276,2.53058,3951.7,3950.6,0.761]
[1734319512525,0.46182378,3951.6,3950.6,0.761]
[1734319512672,2.53086,3951.3,3950.6,0.761]
[1734319513173,2.99247378,3951.6,3950.6,0.761]
[1734319514011,2.53069,3951.5,3950.6,0.761]
[1734319514229,2.53082,3951.3,3950.6,0.761]
[1734319514390,2.53089,3951.2,3950.6,0.761]
[1734319514992,0.29926438,3951.3,3950.6,0.761]
[1734319515195,2.53024,3952.2,3950.6,2.53121]
[1734319515196,2.53025,3952.2,3950.6,2.53121]
[1734319515513,2.53025,3952.2,3949.9,4.27285626]
[1734319515514,2.53025,3952.2,3950.9,0.821]
[1734319517754,2.53009,3952.5,3950.9,3.35204]
[1734319518040,2.53018,3952.3,3951.0,0.8015]
[1734319518238,2.08765779,3952.6,3951.0,0.8015]
[1734319518557,2.53034,3952.1,3951.0,0.8015]
[1734319518846,4.52200938,3952.6,3951.0,0.8015]
[1734319518847,2.53015,3952.4,3951.0,0.8015]
[1734319518984,2.53025,3952.2,3951.0,0.8015]
[1734319521563,2.53007,3952.5,3951.1,2.53093]
[1734319521825,2.53007,3952.5,3951.2,0.8071]
[1734319522000,0.8243,3952.8,3951.2,0.8071]
[1734319522203,2.53031,3952.1,3951.2,0.8071]
[1734319522527,2.53042,3952.0,3951.2,0.8071]
[1734319522903,0.253031,3952.1,3951.2,0.8071]
[1734319523151,2.53008,3952.5,3951.2,0.8071]
[1734319523152,2.53063,3951.6,3951.2,0.8071]
[1734319523433,0.8269,3951.9,3951.2,0.8071]
[1734319523735,2.53062,3951.6,3951.2,0.8071]
[1734319523909,2.08765779,3951.8,3950.8,0.7558]
[1734319524114,2.53091,3951.2,3950.8,0.7558]
[1734319524417,2.08765779,3951.4,3950.0,0.7558]
[1734319524719,0.8269,3951.3,3950.0,0.7558]
[1734319525417,2.08765779,3951.2,3950.0,0.7558]
[1734319525736,2.08765779,3951.2,3948.9,3.29042]
[1734319525737,2.53147,3950.3,3948.9,3.29042]
[1734319525892,2.53147,3950.3,3948.6,0.49366611]
[1734319526100,4.61879779,3950.8,3949.0,0.7903]
[1734319526101,2.53129,3950.6,3949.0,0.7903]
[1734319526599,2.53134,3950.5,3949.2,2.53214]
[1734319526798,0.46189978,3950.5,3949.3,0.7903]
[1734319527038,2.53113,3950.8,3949.5,0.7903]
[1734319527234,2.81338858,3950.8,3949.5,0.7903]
[1734319527435,2.53113,3950.8,3949.6,0.7903]
[1734319527919,0.29145578,3951.1,3949.6,0.7903]
[1734319527920,2.5312,3950.7,3949.6,0.7903]
[1734319528742,0.29145578,3951.1,3949.6,0.7903]
[1734319528943,2.53129,3950.6,3949.6,0.7903]
[1734319529430,2.53111,3950.9,3949.6,3.32219]
[1734319529840,0.57369436,3951.0,3949.0,2.53222]
[1734319530016,2.53088,3951.2,3949.9,2.53167]
[1734319530217,2.53073,3951.5,3950.0,0.7825]
[1734319530614,2.53073,3951.5,3950.2,2.53149]
[1734319530822,2.53073,3951.5,3950.3,0.7906]
[1734319531868,2.53053,3951.8,3950.4,0.797]
[1734319532013,2.53053,3951.8,3950.5,0.797]
[1734319532209,2.53053,3951.8,3950.6,0.797]
[1734319532625,2.53057,3951.7,3950.6,0.797]
[1734319533336,2.08765779,3951.2,3949.7,0.7634]
[1734319533653,4.61856779,3951.2,3949.7,3.29522]
[1734319533867,2.08765779,3951.2,3949.7,0.7634]
[1734319534009,2.53116,3950.8,3949.7,0.7634]
[1734319534209,2.53122,3950.7,3949.7,0.7634]
[1734319535518,2.53137,3950.5,3949.7,0.7634]
[1734319536155,2.5314,3950.4,3949.7,0.7634]
[1734319536817,4.61905779,3950.4,3949.7,0.7634]
[1734319538317,2.08765779,3950.4,3949.7,0.7634]
[1734319538523,0.28639578,3950.3,3949.7,0.7634]
[1734319539148,2.08765779,3950.8,3949.7,0.7634]
[1734319539442,2.53107,3950.9,3949.7,0.7634]
[1734319539832,4.61858779,3951.2,3949.7,0.7634]
[1734319540068,2.53093,3951.2,3950.0,0.7599]
[1734319540265,2.08765779,3951.6,3950.0,3.29152]
[1734319540467,0.46181778,3951.5,3950.0,3.29152]
[1734319540782,0.46181778,3951.5,3950.1,0.7755]
[1734319541151,2.53083,3951.3,3950.1,0.7755]
[1734319541454,2.52169475,3951.3,3950.1,0.7755]
[1734319541888,2.53089,3951.2,3950.1,0.7755]
[1734319542195,2.53115,3950.8,3950.1,0.7755]
[1734319542385,4.61880779,3950.8,3950.1,0.7755]
[1734319542570,2.08765779,3950.8,3950.1,0.7755]
[1734319542772,2.5312,3950.7,3950.1,0.7755]
[1734319543266,2.08765779,3950.8,3950.1,0.7755]
[1734319543468,2.53134,3950.5,3949.8,0.8287]
[1734319544898,0.28389578,3950.7,3949.8,0.8287]
[1734319544899,2.81510578,3950.7,3949.8,0.8287]
[1734319545267,2.53126,3950.6,3949.8,0.8287]
[1734319545467,0.49028136,3950.5,3949.8,0.8287]
[1734319545708,3.02161136,3950.5,3949.8,0.8287]
[1734319545909,2.53139,3950.4,3949.8,0.8287]
[1734319546211,4.61904779,3950.4,3949.1,0.8008]
[1734319546388,3.04241291,3950.3,3949.1,0.8008]
[1734319546703,0.51093291,3950.3,3949.1,0.8008]
[1734319547000,2.08765779,3950.4,3949.1,0.8008]
[1734319547001,2.08765779,3950.4,3949.2,0.778]
[1734319547968,2.53158,3950.1,3949.2,0.778]
[1734319548363,0.757,3950.3,3949.2,0.778]
[1734319548364,2.53182,3949.8,3949.2,0.778]
[1734319548583,2.08765779,3950.0,3948.3,0.7899]
[1734319548867,2.08765779,3949.6,3948.3,0.7899]
[1734319549064,2.53214,3949.3,3948.3,0.7899]
[1734319549580,2.53197,3949.5,3948.3,0.7899]
[1734319550194,2.08765779,3949.6,3948.3,0.7899]
[1734319550380,0.7943,3950.2,3948.4,0.7623]
[1734319550381,2.08765779,3950.0,3948.4,0.7623]
[1734319550569,2.08765779,3950.4,3948.5,0.7623]
[1734319550773,0.28389578,3950.7,3948.5,0.7623]
[1734319550774,2.81514578,3950.7,3949.1,2.5322]
[1734319550967,2.81514578,3950.7,3949.2,0.7904]
[1734319550968,2.53125,3950.7,3949.2,0.7904]
[1734319551381,2.53127,3950.6,3949.2,0.7904]
[1734319551583,2.53134,3950.5,3949.2,0.7904]
[1734319552213,5.18857319,3950.8,3949.2,0.7904]
[1734319552371,0.34130932,3950.7,3949.3,0.7904]
[1734319552706,3.28679,3950.9,3949.3,0.7904]
[1734319553602,2.53113,3950.8,3949.4,0.7749]
[1734319554192,2.53117,3950.8,3949.5,0.7749]
[1734319554505,0.7557,3950.9,3949.5,0.7749]
[1734319554506,2.5312,3950.7,3949.5,0.7749]
[1734319554806,0.32869,3950.6,3949.5,0.7749]
[1734319555938,2.53107,3950.9,3949.5,0.7749]
[1734319556142,2.53096,3951.1,3949.1,2.5322]
[1734319556345,2.53081,3951.3,3949.8,2.53176]
[1734319556674,2.53081,3951.3,3949.3,2.53208]
[1734319556675,0.331671,3951.2,3950.2,2.53147]
[1734319556805,5.18788319,3951.8,3950.3,3.36045]
[1734319557159,2.53056,3951.7,3950.4,0.7988]
[1734319557443,2.65739319,3951.8,3950.4,0.7988]
[1734319557444,2.53062,3951.6,3950.4,0.7988]
[1734319557652,0.51880132,3951.5,3950.4,0.7988]
[1734319557961,2.53089,3951.2,3950.4,0.7988]
[1734319558313,2.65739319,3951.8,3950.4,0.7988]
[1734319558532,2.53076,3951.4,3950.4,0.7988]
[1734319558705,0.253076,3951.3,3950.4,0.7988]
[1734319559115,2.53057,3951.7,3950.4,0.7988]
[1734319559431,2.53072,3951.5,3950.4,0.7988]
[1734319559632,2.53075,3951.4,3950.4,0.7988]
[1734319561547,2.53081,3951.3,3950.4,0.7988]
[1734319561743,0.253081,3951.2,3950.4,0.7988]
[1734319562148,2.53069,3951.5,3950.4,0.7988]
[1734319562349,2.78638682,3951.8,3950.4,0.7988]
[1734319562659,2.53062,3951.6,3950.4,0.7988]
[1734319563859,2.78638682,3951.8,3950.4,0.7988]
[1734319564160,2.53082,3951.3,3950.4,0.7988]
[1734319564363,0.253082,3951.2,3950.4,0.7988]
[1734319564729,2.53057,3951.7,3950.4,0.7988]
[1734319565262,2.53063,3951.6,3950.4,0.7988]
[1734319566249,2.78638682,3951.8,3950.4,0.7988]
[1734319566974,2.53076,3951.4,3950.4,0.7988]
[1734319567163,1.037111,3951.7,3950.4,0.7988]
[1734319567338,2.53078,3951.4,3950.4,0.7988]
[1734319567537,2.53081,3951.3,3950.4,0.7988]
[1734319567976,2.53067,3951.6,3950.4,0.7988]
[1734319568139,0.57983389,3951.5,3950.4,0.7988]
[1734319568341,3.11052389,3951.5,3950.4,0.7988]
[1734319569374,0.57983389,3951.5,3950.5,0.7771]
[1734319569545,0.61027568,3951.7,3950.5,0.7771]
[1734319569746,2.53062,3951.6,3950.5,0.7771]
[1734319570561,0.61027568,3951.7,3950.5,0.7771]
[1734319571873,2.53069,3951.5,3950.5,0.7771]
[1734319572314,2.65739319,3951.3,3950.5,0.7771]
[1734319572614,2.53124,3950.7,3950.5,0.7771]
[1734319572814,2.53134,3950.5,3950.2,0.8185]
[1734319572937,3.568051,3951.1,3950.2,0.8185]
[1734319573142,2.53145,3950.3,3949.8,0.8185]
[1734319574245,2.53145,3950.3,3949.4,0.8185]
[1734319574246,2.08538104,3950.0,3949.4,0.8185]
[1734319574561,2.08538104,3950.0,3949.1,0.8185]
[1734319574562,2.53203,3949.4,3949.1,0.8185]
[1734319575384,0.2085381,3949.9,3949.1,0.8185]
[1734319575385,2.5319,3949.6,3949.1,0.8185]
[1734319577450,2.784625,3950.3,3949.1,0.8185]
[1734319577451,2.53152,3950.2,3949.1,0.8185]
[1734319577992,0.253145,3950.3,3949.1,0.8185]
[1734319578295,2.53164,3950.0,3949.1,0.8185]
[1734319582103,0.2338526,3950.2,3949.1,0.8185]
[1734319582396,2.53176,3949.9,3949.1,0.8185]
[1734319582697,2.7654126,3950.2,3949.1,0.8185]
[1734319582916,1.037111,3950.8,3949.2,0.8183]
[1734319583061,0.34418932,3951.2,3949.4,0.8183]
[1734319583265,0.34418932,3951.2,3950.1,2.53157]
[1734319583576,0.34418932,3951.2,3950.2,0.8183]
[1734319583988,2.53083,3951.3,3950.2,0.8183]
[1734319584197,2.08538104,3951.6,3950.2,0.8183]
[1734319584397,2.53087,3951.3,3950.2,0.8183]
[1734319585488,4.61606104,3951.6,3950.2,2.53151]
[1734319585717,4.61606104,3951.6,3950.3,2.53144]
[1734319585920,2.74266892,3951.6,3950.4,0.8238]
[1734319586122,2.53069,3951.5,3950.4,0.8238]
[1734319586293,2.74266892,3951.6,3950.4,0.8238]
[1734319586488,2.53046,3951.9,3950.5,2.53131]
[1734319586708,2.08538104,3952.0,3950.6,0.8238]
[1734319586709,2.53049,3951.8,3950.6,0.8238]
[1734319587801,2.08538104,3952.0,3950.6,0.8238]
[1734319587995,2.08538104,3951.6,3950.6,0.8238]
[1734319588203,2.53089,3951.2,3950.6,0.8238]
[1734319588425,2.53072,3951.5,3950.6,0.8238]
[1734319588837,2.08538104,3951.6,3950.6,0.8238]
[1734319589038,2.53077,3951.4,3950.6,0.8238]
[1734319589528,2.53082,3951.3,3950.6,0.8238]
[1734319589732,2.531,3951.0,3950.6,0.8238]
[1734319590049,2.531,3951.0,3949.7,2.53179]
[1734319590050,2.531,3951.0,3949.8,0.7708]
[1734319591999,2.531,3951.0,3949.8,3.30256]
[1734319592997,0.8275,3951.4,3949.8,3.30256]
[1734319593139,2.7392481,3951.5,3950.1,2.53157]
[1734319593334,2.7392481,3951.5,3949.8,0.56741499]
[1734319593335,0.37763591,3951.4,3950.3,3.30224]
[1734319593563,0.37763591,3951.4,3949.8,0.56741499]
[1734319593763,2.53052,3951.8,3950.5,0.7708]
[1734319594194,2.51959114,3952.0,3950.5,0.7708]
[1734319594331,2.53056,3951.7,3950.5,0.7708]
[1734319594662,0.69144621,3951.9,3950.5,0.7708]
[1734319594842,2.53067,3951.6,3950.5,0.7708]
[1734319596090,2.53093,3951.2,3950.5,0.7708]
[1734319596301,0.7719,3951.5,3950.5,0.7708]
[1734319596442,2.53081,3951.3,3950.5,0.7708]
[1734319596830,2.53086,3951.3,3950.5,0.7708]
[1734319598237,0.6424992,3951.4,3950.5,0.7708]
[1734319598639,0.818,3951.2,3950.5,0.7708]
[1734319598900,2.53094,3951.1,3950.5,0.7708]
[1734319599549,2.53102,3951.0,3950.5,0.7708]
[1734319600441,6.47114204,3951.6,3950.5,0.7708]
[1734319600770,2.53096,3951.1,3950.5,0.7708]
[1734319601874,2.5308,3951.4,3950.5,0.7708]
[1734319603549,2.53057,3951.7,3950.5,0.7708]
[1734319604431,0.69144621,3951.9,3950.7,2.53117]
[1734319604640,0.67785684,3951.8,3950.8,0.7875]
[1734319605257,2.53036,3952.0,3950.8,0.7875]
[1734319605480,0.86550223,3951.9,3950.8,0.7875]
[1734319605671,2.53049,3951.8,3950.8,0.7875]
[1734319605883,2.53077,3951.4,3950.8,0.7875]
[1734319606928,2.08538104,3951.7,3950.8,0.7875]
[1734319606929,2.53057,3951.7,3950.8,0.7875]
[1734319607198,2.65841246,3952.0,3950.8,0.7875]
[1734319607493,2.53043,3951.9,3950.8,0.7875]
[1734319609533,2.53004,3952.5,3951.2,0.7775]
[1734319609699,0.253004,3952.4,3951.0,0.7775]
[1734319609896,2.52977,3953.0,3951.4,0.7775]
[1734319610098,4.61489104,3953.4,3951.0,2.531]
[1734319610099,3.57650565,3953.3,3952.0,0.7775]
[1734319610295,2.97397865,3953.4,3952.0,0.7775]
[1734319610296,4.20709155,3953.2,3952.0,0.7775]
[1734319610503,2.52959,3953.2,3952.0,0.7775]
[1734319610886,3.13234669,3953.4,3952.0,2.53033]
[1734319611211,1.04696565,3953.8,3952.2,0.7775]
[1734319611385,0.33803141,3953.7,3952.4,2.5301]
[1734319611711,2.52932,3953.7,3952.5,0.7775]
[1734319612088,0.7629,3954.0,3952.5,0.7775]
[1734319612292,2.52941,3953.5,3952.5,0.7775]
[1734319612488,0.7629,3954.0,3952.5,0.7775]
[1734319612721,2.65293578,3953.7,3952.5,0.7775]
[1734319613215,2.52958,3953.3,3952.5,0.7775]
[1734319613792,2.52962,3953.2,3952.5,0.7775]
[1734319615516,5.18223578,3953.7,3952.5,0.7775]
[1734319615517,2.65293578,3953.7,3952.5,0.7775]
[1734319615748,2.52965,3953.2,3952.5,0.7775]
[1734319615890,2.65293578,3953.7,3952.5,0.7775]
[1734319616225,2.52987,3952.8,3952.5,0.7775]
[1734319616749,2.65293578,3953.7,3952.5,0.7775]
[1734319617037,2.52975,3953.0,3952.5,0.7775]
[1734319617184,0.252975,3952.9,3952.5,0.7775]
[1734319617391,2.52975,3953.0,3952.5,0.7775]
[1734319619463,2.5292,3953.9,3952.5,0.7775]
[1734319619600,0.7629,3954.0,3952.5,0.7775]
[1734319619803,2.52961,3953.2,3952.5,0.7775]
[1734319620237,3.29201,3954.0,3952.5,0.7775]
[1734319620431,0.329201,3953.9,3952.5,0.7775]
[1734319620615,2.52942,3953.5,3952.5,0.7775]
[1734319620819,0.329201,3953.9,3952.5,0.7775]
[1734319621020,2.52947,3953.4,3952.5,0.7775]
[1734319622436,2.65293578,3953.8,3952.5,0.7775]
[1734319622642,2.52988,3952.8,3952.5,0.7775]
[1734319622965,2.52946,3953.5,3952.5,0.7775]
[1734319623235,2.52974,3953.0,3952.5,0.7775]
[1734319623397,2.782714,3953.0,3952.5,0.7775]
[1734319623604,2.52995,3952.7,3952.5,0.7775]
[1734319626307,0.252974,3953.0,3952.5,0.7775]
[1734319626731,2.52991,3952.7,3952.5,0.7775]
[1734319627928,3.29019,3953.7,3952.5,0.7775]
[1734319628125,0.44646513,3953.6,3952.5,0.7775]
[1734319629149,2.52955,3953.3,3952.5,0.7775]
[1734319629516,0.44646513,3953.6,3952.5,0.7775]
[1734319629712,2.52964,3953.2,3952.5,0.7775]
[1734319630140,2.52946,3953.5,3952.5,0.7775]
[1734319630519,2.52947,3953.4,3952.5,0.7775]
[1734319631055,0.44646513,3953.6,3952.5,0.7775]
[1734319631365,2.52895,3954.3,3952.8,2.52984]
[1734319631531,2.52895,3954.3,3952.6,0.604915]
[1734319631532,0.26174141,3954.4,3953.1,3.33265]
[1734319631850,0.26174141,3954.4,3953.2,0.7711]
[1734319632052,2.52889,3954.3,3953.2,0.7711]
[1734319632219,2.52893,3954.3,3953.2,0.7711]
[1734319633317,2.52875,3954.6,3953.3,0.7609]
[1734319633518,0.51816858,3954.5,3953.3,2.52952]
[1734319633718,2.52853,3954.9,3953.4,0.7609]
[1734319634320,2.97091099,3955.0,3953.4,0.7609]
[1734319634757,2.52869,3954.7,3953.4,0.7609]
[1734319635469,2.52879,3954.5,3953.4,0.7609]
[1734319635752,2.781669,3954.5,3953.4,0.7609]
[1734319635955,2.52879,3954.5,3953.4,0.7609]
[1734319637363,2.08094009,3954.6,3953.4,0.7609]
[1734319637564,2.52876,3954.5,3953.4,0.7609]
[1734319637789,2.5292,3953.9,3953.4,0.7609]
[1734319638442,2.52882,3954.4,3953.4,0.7609]
[1734319638646,2.52866,3954.7,3953.5,0.8006]
[1734319639033,2.52866,3954.7,3953.6,0.8006]
[1734319639468,2.52841,3955.1,3953.7,0.8006]
[1734319639968,2.52837,3955.2,3953.9,0.8006]
[1734319640170,2.52837,3955.2,3953.9,3.32969]
[1734319640347,2.52837,3955.2,3954.0,0.8006]
[1734319641062,0.28829401,3955.3,3954.1,0.8006]
[1734319641380,2.52825,3955.3,3954.2,0.8006]
[1734319641538,2.08094009,3955.5,3954.2,0.8006]
[1734319641737,2.52846,3955.0,3954.2,0.8006]
[1734319644683,2.52851,3954.9,3954.2,0.8006]
[1734319645243,2.52837,3955.2,3954.2,0.8006]
[1734319645498,2.52825,3955.3,3954.2,0.8006]
[1734319645666,2.52841,3955.1,3954.2,0.8006]
[1734319645870,2.52853,3954.9,3954.2,0.8006]
[1734319646066,2.52857,3954.8,3954.2,0.8006]
[1734319647643,0.20809401,3955.4,3954.2,0.8006]
[1734319647874,2.52866,3954.7,3954.2,0.8006]
[1734319648512,0.20809401,3955.4,3954.2,0.8006]
[1734319648641,2.52884,3954.4,3954.2,0.8006]
[1734319649363,2.5287,3954.6,3954.2,0.8006]
[1734319649801,2.52844,3955.0,3954.2,0.8006]
[1734319649802,2.52877,3954.5,3954.2,0.8006]
[1734319650365,2.08094009,3955.1,3954.2,0.8006]
[1734319650587,0.53836001,3955.0,3954.2,0.8006]
[1734319651054,2.52877,3954.5,3954.2,0.8006]
[1734319652473,3.06685001,3955.0,3954.2,0.8006]
[1734319652474,2.52883,3954.4,3954.2,0.8006]
[1734319653167,0.53836001,3955.0,3954.2,0.8006]
[1734319653168,2.52889,3954.3,3954.2,0.8006]
[1734319653698,2.52875,3954.6,3954.2,0.8006]
[1734319654056,0.53836001,3955.0,3954.2,0.8006]
[1734319654274,2.52821,3955.4,3954.2,0.8006]
[1734319654556,2.52821,3955.4,3954.2,2.52895]
[1734319654760,2.52821,3955.4,3954.3,0.7898]
[1734319655499,2.08094009,3955.5,3954.3,0.7898]
[1734319655681,2.52825,3955.3,3954.3,0.7898]
[1734319655863,2.52835,3955.2,3954.3,0.7898]
[1734319656060,0.20809401,3955.4,3954.3,0.7898]
[1734319656260,2.73630401,3955.4,3954.3,0.7898]
[1734319656989,2.52825,3955.3,3954.3,0.7898]
[1734319657686,0.20809401,3955.4,3954.3,0.7898]
[1734319657914,2.73628401,3955.4,3954.3,0.7898]
[1734319658218,2.52819,3955.4,3954.3,0.7898]
[1734319659053,2.08094009,3955.9,3954.6,2.52865]
[1734319659258,2.87764009,3956.3,3954.8,0.8299]